{"text_format":"3","workbook":"xlsx","n_sheets":2,"sheets":[" Дети 3-7 лет","Дети до 3-лет"],"not_rendered":{"images":3,"external_links":2},"read":"whole","date_system":"1900"}

{"sheet":" Дети 3-7 лет","index":0,"n_rows":16,"n_cols":7,"rows_kept":16,"merged":[[0,3,0,4]]}
[null," МБДОУ д/с № 362"]
["Прием пищи","Блюдо","Выход","Калорийность","Белки","Жиры","Углеводы"]
["Завтрак",{"$f":"'[1]Дневной рацион, Дети 3-7 лет, '!D4","v":"Каша \"Дружба\" на молоке."},{"$f":"'[1]Дневной рацион, Дети 3-7 лет, '!E4","v":201},180.8,4.925,6.935,24.723]
[null,{"$f":"'[1]Дневной рацион, Дети 3-7 лет, '!D5","v":"Бутерброды с маслом ."},{"$f":"'[1]Дневной рацион, Дети 3-7 лет, '!E5","v":25},121.667,1.334,9.167,8.334]
[null,{"$f":"'[1]Дневной рацион, Дети 3-7 лет, '!D6","v":"Какао с молоком ."},{"$f":"'[1]Дневной рацион, Дети 3-7 лет, '!E6","v":200},106.7,4.6,4.3,12.4]
["Завтрак №2",{"$f":"'[1]Дневной рацион, Дети 3-7 лет, '!D7","v":"Яблоко свежее"},{"$f":"'[1]Дневной рацион, Дети 3-7 лет, '!E7","v":102},114.138,1.02,1.02,23.766]
[null,{"$f":"'[1]Дневной рацион, Дети 3-7 лет, '!D8","v":"Суп картофельный с клецками из филе кур."},{"$f":"'[1]Дневной рацион, Дети 3-7 лет, '!E8","v":201},99.516,4.623,3.216,13.025]
["Обед",{"$f":"'[1]Дневной рацион, Дети 3-7 лет, '!D9","v":"Суфле куриное с рисом из филе птицы."},{"$f":"'[1]Дневной рацион, Дети 3-7 лет, '!E9","v":166},122.84,14.586,5.523,3.752]
[null,{"$f":"'[1]Дневной рацион, Дети 3-7 лет, '!D10","v":"Компот из кураги и изюма."},{"$f":"'[1]Дневной рацион, Дети 3-7 лет, '!E10","v":200},18.64,0.12,null,4.54]
[null,{"$f":"'[1]Дневной рацион, Дети 3-7 лет, '!D11","v":"Хлеб  пшеничный"},{"$f":"'[1]Дневной рацион, Дети 3-7 лет, '!E11","v":40}]
[null,{"$f":"'[1]Дневной рацион, Дети 3-7 лет, '!D12","v":"Хлеб  ржаной"},{"$f":"'[1]Дневной рацион, Дети 3-7 лет, '!E12","v":33}]
[null,{"$f":"'[1]Дневной рацион, Дети 3-7 лет, '!D13","v":"свекла тушенная со сметаной."},{"$f":"'[1]Дневной рацион, Дети 3-7 лет, '!E13","v":34},22.149,0.389,1.312,2.235]
[null,{"$f":"'[1]Дневной рацион, Дети 3-7 лет, '!D14","v":"Пирожки печеные с картофелем."},{"$f":"'[1]Дневной рацион, Дети 3-7 лет, '!E14","v":69},235.521,7.821,14.49,18.516]
[null,{"$f":"'[1]Дневной рацион, Дети 3-7 лет, '!D15","v":"Каша вязкая молочная ячневая ."},{"$f":"'[1]Дневной рацион, Дети 3-7 лет, '!E15","v":201},295.671,8.342,12.663,36.984]
["Полдник",{"$f":"'[1]Дневной рацион, Дети 3-7 лет, '!D16","v":"Кисель из ягод (черника)."},{"$f":"'[1]Дневной рацион, Дети 3-7 лет, '!E16","v":200},10.16,0.04,0.02,2.46]
[null,{"$f":"'[1]Дневной рацион, Дети 3-7 лет, '!D17","v":"Хлеб  пшеничный"},{"$f":"'[1]Дневной рацион, Дети 3-7 лет, '!E17","v":20}]

{"sheet":"Дети до 3-лет","index":1,"n_rows":17,"n_cols":7,"rows_kept":17}
[]
[]
["Прием пищи","Блюдо","Выход","Калорийность","Белки","Жиры","Углеводы"]
["Завтрак",{"$f":"'[2]Дневной рацион, Дети до 3х лет'!D4","v":"Каша \"Дружба\" на молоке."},{"$f":"'[2]Дневной рацион, Дети до 3х лет'!E4","v":171},{"$f":"'[2]Дневной рацион, Дети до 3х лет'!G4","v":153.815},{"$f":"'[2]Дневной рацион, Дети до 3х лет'!H4","v":4.19},{"$f":"'[2]Дневной рацион, Дети до 3х лет'!I4","v":5.9},{"$f":"'[2]Дневной рацион, Дети до 3х лет'!J4","v":21.033}]
[null,{"$f":"'[2]Дневной рацион, Дети до 3х лет'!D5","v":"Бутерброды с маслом ."},{"$f":"'[2]Дневной рацион, Дети до 3х лет'!E5","v":25},{"$f":"'[2]Дневной рацион, Дети до 3х лет'!G5","v":121.667},{"$f":"'[2]Дневной рацион, Дети до 3х лет'!H5","v":1.334},{"$f":"'[2]Дневной рацион, Дети до 3х лет'!I5","v":9.167},{"$f":"'[2]Дневной рацион, Дети до 3х лет'!J5","v":8.334}]
[null,{"$f":"'[2]Дневной рацион, Дети до 3х лет'!D6","v":"Какао с молоком ."},{"$f":"'[2]Дневной рацион, Дети до 3х лет'!E6","v":181},{"$f":"'[2]Дневной рацион, Дети до 3х лет'!G6","v":96.564},{"$f":"'[2]Дневной рацион, Дети до 3х лет'!H6","v":4.163},{"$f":"'[2]Дневной рацион, Дети до 3х лет'!I6","v":3.892},{"$f":"'[2]Дневной рацион, Дети до 3х лет'!J6","v":11.222}]
[null,{"$f":"'[2]Дневной рацион, Дети до 3х лет'!D7","v":"Яблоко свежее"},{"$f":"'[2]Дневной рацион, Дети до 3х лет'!E7","v":60},{"$f":"'[2]Дневной рацион, Дети до 3х лет'!G7","v":67.14},{"$f":"'[2]Дневной рацион, Дети до 3х лет'!H7","v":0.6},{"$f":"'[2]Дневной рацион, Дети до 3х лет'!I7","v":0.6},{"$f":"'[2]Дневной рацион, Дети до 3х лет'!J7","v":13.98}]
["Завстак №2",{"$f":"'[2]Дневной рацион, Дети до 3х лет'!D8","v":"Суп картофельный с клецками из филе кур."},{"$f":"'[2]Дневной рацион, Дети до 3х лет'!E8","v":173},{"$f":"'[2]Дневной рацион, Дети до 3х лет'!G8","v":85.653},{"$f":"'[2]Дневной рацион, Дети до 3х лет'!H8","v":3.979},{"$f":"'[2]Дневной рацион, Дети до 3х лет'!I8","v":2.768},{"$f":"'[2]Дневной рацион, Дети до 3х лет'!J8","v":11.211}]
[null,{"$f":"'[2]Дневной рацион, Дети до 3х лет'!D9","v":"Суфле куриное с рисом из филе птицы."},{"$f":"'[2]Дневной рацион, Дети до 3х лет'!E9","v":145},{"$f":"'[2]Дневной рацион, Дети до 3х лет'!G9","v":107.3},{"$f":"'[2]Дневной рацион, Дети до 3х лет'!H9","v":12.742},{"$f":"'[2]Дневной рацион, Дети до 3х лет'!I9","v":4.825},{"$f":"'[2]Дневной рацион, Дети до 3х лет'!J9","v":3.277}]
[null,{"$f":"'[2]Дневной рацион, Дети до 3х лет'!D10","v":"Компот из кураги и изюма."},{"$f":"'[2]Дневной рацион, Дети до 3х лет'!E10","v":180},{"$f":"'[2]Дневной рацион, Дети до 3х лет'!G10","v":16.776},{"$f":"'[2]Дневной рацион, Дети до 3х лет'!H10","v":0.108},{"$f":"'[2]Дневной рацион, Дети до 3х лет'!I10","v":0},{"$f":"'[2]Дневной рацион, Дети до 3х лет'!J10","v":4.086}]
[null,{"$f":"'[2]Дневной рацион, Дети до 3х лет'!D11","v":"Хлеб  пшеничный"},{"$f":"'[2]Дневной рацион, Дети до 3х лет'!E11","v":30},{"$f":"'[2]Дневной рацион, Дети до 3х лет'!G11","v":0},{"$f":"'[2]Дневной рацион, Дети до 3х лет'!H11","v":0},{"$f":"'[2]Дневной рацион, Дети до 3х лет'!I11","v":0},{"$f":"'[2]Дневной рацион, Дети до 3х лет'!J11","v":0}]
["Обед",{"$f":"'[2]Дневной рацион, Дети до 3х лет'!D12","v":"Хлеб  ржаной"},{"$f":"'[2]Дневной рацион, Дети до 3х лет'!E12","v":28},{"$f":"'[2]Дневной рацион, Дети до 3х лет'!G12","v":0},{"$f":"'[2]Дневной рацион, Дети до 3х лет'!H12","v":0},{"$f":"'[2]Дневной рацион, Дети до 3х лет'!I12","v":0},{"$f":"'[2]Дневной рацион, Дети до 3х лет'!J12","v":0}]
[null,{"$f":"'[2]Дневной рацион, Дети до 3х лет'!D13","v":"свекла тушенная со сметаной."},{"$f":"'[2]Дневной рацион, Дети до 3х лет'!E13","v":20},{"$f":"'[2]Дневной рацион, Дети до 3х лет'!G13","v":13.029},{"$f":"'[2]Дневной рацион, Дети до 3х лет'!H13","v":0.229},{"$f":"'[2]Дневной рацион, Дети до 3х лет'!I13","v":0.772},{"$f":"'[2]Дневной рацион, Дети до 3х лет'!J13","v":1.315}]
[null,{"$f":"'[2]Дневной рацион, Дети до 3х лет'!D14","v":"Пирожки печеные с картофелем."},{"$f":"'[2]Дневной рацион, Дети до 3х лет'!E14","v":61},{"$f":"'[2]Дневной рацион, Дети до 3х лет'!G14","v":208.214},{"$f":"'[2]Дневной рацион, Дети до 3х лет'!H14","v":6.914},{"$f":"'[2]Дневной рацион, Дети до 3х лет'!I14","v":12.81},{"$f":"'[2]Дневной рацион, Дети до 3х лет'!J14","v":16.369}]
[null,{"$f":"'[2]Дневной рацион, Дети до 3х лет'!D15","v":"Каша вязкая молочная ячневая ."},{"$f":"'[2]Дневной рацион, Дети до 3х лет'!E15","v":181},{"$f":"'[2]Дневной рацион, Дети до 3х лет'!G15","v":266.251},{"$f":"'[2]Дневной рацион, Дети до 3х лет'!H15","v":7.512},{"$f":"'[2]Дневной рацион, Дети до 3х лет'!I15","v":11.403},{"$f":"'[2]Дневной рацион, Дети до 3х лет'!J15","v":33.304}]
["Полдник",{"$f":"'[2]Дневной рацион, Дети до 3х лет'!D16","v":"Кисель из ягод (черника)."},{"$f":"'[2]Дневной рацион, Дети до 3х лет'!E16","v":180},{"$f":"'[2]Дневной рацион, Дети до 3х лет'!G16","v":9.144},{"$f":"'[2]Дневной рацион, Дети до 3х лет'!H16","v":0.036},{"$f":"'[2]Дневной рацион, Дети до 3х лет'!I16","v":0.018},{"$f":"'[2]Дневной рацион, Дети до 3х лет'!J16","v":2.214}]
[null,{"$f":"'[2]Дневной рацион, Дети до 3х лет'!D17","v":"Хлеб  пшеничный"},{"$f":"'[2]Дневной рацион, Дети до 3х лет'!E17","v":20},{"$f":"'[2]Дневной рацион, Дети до 3х лет'!G17","v":0},{"$f":"'[2]Дневной рацион, Дети до 3х лет'!H17","v":0},{"$f":"'[2]Дневной рацион, Дети до 3х лет'!I17","v":0},{"$f":"'[2]Дневной рацион, Дети до 3х лет'!J17","v":0}]